Cogmind - Beta 13 @@@ ROGUE MODE // 2024.05.31 @ 18:20:01 Player: Bace Troncons Result: Destroyed by NF-7NF(R) with Subdweller Laser Performance ------------- Evolutions (0) 0 Regions Visited (2) 400 Robots Destroyed (36) 180 Value Destroyed (724) 724 Prototype IDs (0) 0 Alien Tech Used (0) 0 Bonus (0) 0 TOTAL SCORE: 1304 Bonus ------- None Cogmind --------- Core Integrity 0/250 Matter 100/300 Energy 100/100 System Corruption 0% Temperature Cool (6) Movement Treading (240) Ox1 Location -10/Subcaves Parts ------- > --- POWER (1) -------- (None) > --- PROPULSION (2) --- Light Treads > --- UTILITY (2) ------ Large Storage Unit Light Armor Plating > --- WEAPON (2) ------- Light Cannon Mining Claw > --- INVENTORY (15) --- Light Treads Light Treads Light Treads Light Treads Sensor Array Terrain Scanner Light Armor Plating Hacking Suite Light Assault Rifle Grenade Launcher Peak State ------------ > --- POWER ------------ Light Ion Engine > --- PROPULSION ------- Light Treads Light Treads > --- UTILITY ---------- Small Storage Unit Improved Terrain Scanner > --- WEAPON ----------- Light Assault Rifle Light Assault Rifle > --- INVENTORY -------- Ion Engine Sensor Array Light Armor Plating Light Armor Plating Hacking Suite Light Assault Rifle Grenade Launcher Mining Claw [Rating: 10] Favorites ----------- Power Light Ion Engine Engine Light Ion Engine Propulsion Light Treads Treads Light Treads Utility Improved Terrain Scanner Device Improved Terrain Scanner Storage Large Storage Unit Protection Light Armor Plating Weapon Light Assault Rifle Ballistic Gun Light Assault Rifle Ballistic Cannon Light Cannon Launcher Grenade Launcher Slashing Weapon Mining Claw Build | -11 -10 -10 ------- Run | Yrd Mat Sub Slots Evolved . | . . . Power . | . . . Propulsion . | . . . Utility . | . . . Weapon . | . . . Parts Attached 23 | 7 8 8 Power 3 | 1 1 1 Engine 3 | 1 1 1 Core . | . . . Reactor . | . . . Propulsion 7 | 2 5 . Treads 7 | 2 5 . Leg . | . . . Wheel . | . . . Hover . | . . . Flight . | . . . Utility 4 | 2 1 1 Device 1 | 1 . . Storage 2 | 1 1 . Processor . | . . . Hackware . | . . . Protection 1 | . . 1 Artifact . | . . . Weapon 9 | 2 1 6 Energy Gun . | . . . Energy Cannon . | . . . Ballistic Gun 4 | 2 1 1 Ballistic Cannon 2 | . . 2 Launcher 2 | . . 2 Special Weapon . | . . . Impact Weapon . | . . . Slashing Weapon 1 | . . 1 Piercing Weapon . | . . . Special Melee Weapon . | . . . Unidentified Prototypes . | . . . Parts Lost 6 | . 1 5 Power 2 | . . 2 Propulsion 2 | . 1 1 Utility 1 | . . 1 Weapon 1 | . . 1 Highest Loss Streak 3 | . 1 3 To Critical Strikes 1 | . . 1 Average Slot Usage (%) 97 | . 99 92 Engine 13 | . 14 13 Treads 25 | . 27 21 Device 11 | . 14 5 Storage 14 | . 14 14 Protection 2 | . . 8 Ballistic Gun 23 | . 28 11 Launcher 2 | . . 7 Slashing Weapon 1 | . . 5 Naked Turns . | . . . Heaviest Build 33 | 11 26 33 Greatest Support 40 | 40 40 40 Greatest Overweight (x) 2 | 2 . 1 Average Overweight (x) . | . . . Largest Inventory Capacity 15 | 8 15 15 Average Capacity 12 | 7 11 15 Most Carried 13 | 4 13 13 Average Carried 9 | 3 9 11 Final Capacity 15 | 8 15 15 Final Carried 13 | 4 13 10 Class Distribution -------------------- 89% | Mutant 10% | Scavenger-Mutant Dominant Class ---------------- Mutant | -10/Materials Mutant | -10/Subcaves Resources | -11 -10 -10 ----------- Run | Yrd Mat Sub Matter Collected 583 | 284 239 60 Remotely . | . . . Salvage Created 831 | 74 645 112 Parts 69 | 6 50 13 Haulers Intercepted 2 | . 2 . Recyclers Shooed 3 | 1 2 . Parts Field Recycled . | . . . Retrieved Matter . | . . . Parts Self-Destructed 4 | . . 4 Prevented . | . . . Kills | -11 -10 -10 ------- Run | Yrd Mat Sub Combat Hostiles Destroyed 24 | . 15 9 Guns 17 | . 15 2 Cannons 2 | . . 2 AOE 5 | . . 5 Classes Destroyed 8 | 2 5 1 Tunneler 2 | 1 1 . Hauler 2 | . 2 . Recycler 1 | 1 . . Operator 4 | . 4 . Watcher 3 | . 3 . Swarmer 11 | . 8 3 Grunt 7 | . 7 . Subdweller 6 | . . 6 Best Kill Streak 5 | 1 5 4 Combat Bots Only 4 | . 4 4 Max Kills in Single Turn 2 | 1 2 2 Gunslinging 1 | . 1 . Exploded 2 | . . 2 Melee . | . . . Uniques/NPCs Destroyed . | . . . Combat | -11 -10 -10 -------- Run | Yrd Mat Sub Hostile Shots Fired 116 | . 57 59 Missed 28 | . 17 11 Damage Taken 1381 | . 484 897 Core 263 | . 109 154 Absorbed by Shields . | . . . Core Remaining (%) 100 | 100 . . Volleys Fired 135 | 7 94 34 Largest 2 | 2 2 2 Hottest 55 | 40 40 55 Shots Fired 263 | 14 188 61 Gun 237 | 14 188 35 Cannon 19 | . . 19 Launcher 7 | . . 7 Special . | . . . Kinetic 256 | 14 188 54 Thermal . | . . . Explosive 7 | . . 7 Electromagnetic . | . . . Robot Hit Streak 13 | 4 9 13 Robot Miss Streak 5 | 1 5 4 Penetration Max . | . . . Secondary Targets 3 | . 2 1 Max Gunslinging Chain 1 | . 1 1 Shots Hit Robots 169 | 9 111 49 Core Hits 73 | 5 51 17 Critical Kills 2 | . 2 . Critical Parts Destroyed . | . . . Critical Strikes 4 | . 2 2 Destroy 3 | . 2 1 Blast 1 | . . 1 Melee Attacks 1 | . . 1 Impact . | . . . Slashing 1 | . . 1 Piercing . | . . . Sneak Attacks . | . . . Combat Hostiles . | . . . Follow-up Attacks . | . . . Damage Inflicted 1914 | 81 895 938 Guns 1175 | 81 895 199 Cannons 277 | . . 277 Explosions 462 | . . 462 Melee . | . . . Ramming . | . . . Kinetic 1452 | 81 895 476 Thermal . | . . . Explosive 462 | . . 462 Electromagnetic . | . . . Impact . | . . . Slashing . | . . . Piercing . | . . . Highest Corruption . | . . . Average Corruption . | . . . Corruption Purged . | . . . Corruption Blocked . | . . . Overload Shots . | . . . Overflow Damage . | . . . Projectiles . | . . . Explosions . | . . . Melee . | . . . Knockbacks 3 | . . 3 Impact . | . . . Kinetic 3 | . . 3 Secondary . | . . . Self-Inflicted Damage 7 | . . 7 Shots 1 | . . 1 Rammed . | . . . Targets Rammed . | . . . Kicked . | . . . Crushed . | . . . Highest Temperature 12 | . 12 . Average Temperature 6 | . 6 . Received Heat Transfer 300 | . 120 180 Siege Activations . | . . . Robots Corrupted . | . . . Combat Hostiles . | . . . Parts Fried . | . . . Impact Corruptions . | . . . Robots Melted . | . . . Combat Hostiles . | . . . Parts Melted . | . . . Heat Transferred . | . . . Parts Sabotaged . | . . . Parts Stolen . | . . . Parts Stripped . | . . . Power Chain Reactions . | . . . Alert | -11 -10 -10 ------- Run | Yrd Mat Sub Peak Influence 308 | 10 308 . Initial 6 | . 6 . Average 79 | 7 88 . Maximum Alert Level 1 | . 1 . Low Security (%) 93 | 100 92 . Level 1 6 | . 7 . Level 2 . | . . . Level 3 . | . . . Level 4 . | . . . Level 5 . | . . . High Security . | . . . Max Security . | . . . Squads Dispatched 5 | . 5 . Investigation 1 | . 1 . Extermination . | . . . Reinforcement 4 | . 4 . Assault . | . . . Garrison . | . . . Intercept . | . . . Searches Triggered . | . . . Construction Impeded . | . . . Haulers Reinforced . | . . . Active Scanning Responses . | . . . Cargo Convoy Interrupts . | . . . Stealth | -11 -10 -10 --------- Run | Yrd Mat Sub Distress Signals 2 | . 2 . Communications Jammed . | . . . Distress Signals . | . . . Times Spotted 49 | . 38 11 Peak Tracking Total 4 | . 4 3 Tactical Retreats 2 | . 2 . Traps | -11 -10 -10 ------- Run | Yrd Mat Sub Traps Triggered 1 | . 1 . Indirectly . | . . . Trap Hack Attempts . | . . . Triggered . | . . . Disarmed . | . . . Reprogrammed . | . . . Reused . | . . . Traps Extracted . | . . . Installed . | . . . Triggered . | . . . Machines | -11 -10 -10 ---------- Run | Yrd Mat Sub Machines Disabled . | . . . Max in Single Turn . | . . . Machines Repaired . | . . . Machines Dismantled . | . . . Machines Sabotaged . | . . . Overloaded Fab Kills . | . . . Hacking | -11 -10 -10 --------- Run | Yrd Mat Sub Machines Accessed 6 | . 6 . Terminals 4 | . 4 . Fabricators . | . . . Repair Stations . | . . . Recycling Units 2 | . 2 . Scanalyzers . | . . . Garrison Access . | . . . Total Hacks 15 | . 15 . Successful 3 | . 3 . Failed 12 | . 12 . Catastrophic 2 | . 2 . Database Lockouts . | . . . Manual 2 | . 2 . Terminals 11 | . 11 . Fabricators . | . . . Repair Stations . | . . . Recycling Units 4 | . 4 . Scanalyzers . | . . . Garrison Access . | . . . Terminal Hacks 2 | . 2 . Locate Traps 1 | . 1 . Zone Layout 1 | . 1 . Fabricator Hacks . | . . . Repair Station Hacks . | . . . Recycling Unit Hacks 1 | . 1 . Retrieve Components 1 | . 1 . Scanalyzer . | . . . Garrison Access Hacks . | . . . Unauthorized Hacks . | . . . Terminals . | . . . Fabricators . | . . . Repair Stations . | . . . Recycling Units . | . . . Scanalyzers . | . . . Garrison Access . | . . . Data Cores Recovered 1 | . 1 . Used 1 | . 1 . Hacking Detections 5 | . 5 . Full Trace Events . | . . . Feedback Events . | . . . Feedback Blocked . | . . . Robot Schematics Acquired . | . . . Robots Built . | . . . Authchips . | . . . Time . | . . . Total Robot Build Rating . | . . . Part Schematics Acquired . | . . . Parts Built . | . . . Authchips . | . . . Time . | . . . Total Part Build Rating . | . . . Parts Repaired . | . . . Time . | . . . Parts Recycled . | . . . Recycled Matter . | . . . Retrieved Matter . | . . . Retrieved Components 1 | . 1 . Parts Scanalyzed . | . . . Part Schematics Acquired . | . . . Parts Damaged . | . . . Bothacking | -11 -10 -10 ------------ Run | Yrd Mat Sub Used RIF Installer . | . . . Robots Hacked . | . . . Non-combat . | . . . Combat . | . . . Robot Hacks Applied . | . . . Relay Couplers Released . | . . . Fabnet Peak Effective % . | . . . Robots Rewired . | . . . Allies Hacked . | . . . Hacks Repelled . | . . . Allies | -11 -10 -10 -------- Run | Yrd Mat Sub Total Allies . | . . . Largest Group . | . . . Highest-Rated Group . | . . . Highest-Rated Ally . | . . . Total Orders . | . . . Ally Attacks . | . . . Total Damage . | . . . Kills . | . . . Allies Corrupted . | . . . Allies Melted . | . . . Intel | -11 -10 -10 ------- Run | Yrd Mat Sub Robot Analysis Total . | . . . Derelict Logs Recovered . | . . . Drone Launches . | . . . Drone Recoveries . | . . . Exploration | -11 -10 -10 ------------- Run | Yrd Mat Sub Turns Passed 3566 | 297 2408 861 Spaces Moved 1188 | 91 736 361 Core 11 | 11 . . Treads 1177 | 80 736 361 Legs . | . . . Wheels . | . . . Hover . | . . . Flight . | . . . Fastest Speed 50 | 50 160 160 Average Speed 170 | 153 160 195 Slowest Speed 240 | 160 160 240 Overloaded Moves . | . . . Propulsion Burnouts . | . . . Robots Hopped . | . . . Cave-ins Triggered . | . . . Exploration Rate (%) 45 | 8 100 29 Regions Visited 2 Branch Regions 1 Pre-discovered Areas . | . . . Known Exits Taken . | . . . Unknown Exits Taken 2 | 1 1 . Scrap Searched . | . . . Spaces Dug . | . . . Terrain Destroyed 27 | . . 27 Melee . | . . . Projectile . | . . . AOE 27 | . . 27 Terrain Rammed . | . . . Walls Destroyed . | . . . Machines Disabled . | . . . Actions | -11 -10 -10 --------- Run | Yrd Mat Sub Total 2510 | 234 1819 457 Wait 1139 | 126 960 53 Move 1186 | 90 735 361 Hop . | . . . Pick Up 16 | 4 12 . Fast Attach 8 | 7 1 . Attach 3 | . . 3 Detach . | . . . Swap 12 | . 7 5 Drop 10 | . 10 . Fire 135 | 7 94 34 Melee 1 | . . 1 Ram . | . . . Kick . | . . . Crush . | . . . Escape Stasis . | . . . Rewire . | . . . Trap . | . . . Miscellaneous . | . . . Route ------- -11/Scrapyard -10/Materials (discovered 6 exits: [*Mat x3] / [*Min x2] / [*Sub]) -10/Subcaves (discovered 1 exit: [*Mat]) History --------- Turn | Location | Event 16 | -11/Scrapyard | Discovered new exit (range 15) 298 | -11/Scrapyard | Entered Materials 318 | -10/Materials | Build established: Mutant 714 | -10/Materials | Discovered new exit (range 14) 930 | -10/Materials | Discovered new exit (range 16) 1260 | -10/Materials | Discovered new exit (range 3) 1689 | -10/Materials | Discovered new exit (range 9) 1767 | -10/Materials | Build established: Scavenger-Mutant 1881 | -10/Materials | Discovered new exit (range 9) 2155 | -10/Materials | Build established: Mutant 2691 | -10/Materials | Discovered new exit (range 5) 2706 | -10/Materials | Entered Subcaves 2840 | -10/Subcaves | Core integrity fell below 50% 3092 | -10/Subcaves | Lost 3 parts (1p1u1w) 3134 | -10/Subcaves | Discovered new exit (range 9) 3146 | -10/Subcaves | A Subdweller sparked back to life 3146 | -10/Subcaves | A Subdweller sparked back to life 3150 | -10/Subcaves | Ambushed by Subdweller buried in earth 3162 | -10/Subcaves | Core integrity fell below 20% 3567 | -10/Subcaves | Destroyed by NF-7NF(R) with Subdweller Laser Last Messages --------------- 03134_ EXIT=FOUND 03146_ 52-MVL(R) creaks and sparks as it begins to move. 03146_ 7J-QWO(R) creaks and sparks as it begins to move. 03147_ 7J-QWO(R) destroyed. 03151_ A3-YU7(R): "THANKSYOU!" 03155_ J0-UQH(R) affixes Scrap Shield Fragment to Scrap Shield. 03155_ Critical hit (Destroy). 03155_ Lgt. Treads destroyed. 03156_ 52-MVL(R) suffers critical hit (Destroy). 03156_ J0-UQH(R) destroyed. 03161_ A3-YU7(R) destroyed. 03163_ The unstable cave ceiling collapses. 03168_ 52-MVL(R) destroyed. 03171_ The unstable cave ceiling collapses. 03191_ Acquired 2 matter. 03196_ The unstable cave ceiling collapses. 03566_ Ion Engine destroyed. Map ----- +----------------------------------------------------+ | ?????????????????????????????????????????????? | | ?????????????????????????????????????????????? | | ?????????????????????????????????????????????? | | ?????????????????????????????????????????????? | | ?????????????????????????????????????????????? | | ?????????????????????????????????????????????? | | ?????????????????????????????????????????????? | | ?????????????????????????????????????????????? | | ?????????????????????????????????????????????? | | ?????????????????????????????????????????????? | | ?????????????????????????????????????????????? | | ?????????????????????? ??????????????????????? | | ?????????????????????? ??##??????????????????? | | ?????????????????????? ?? ##????????????????? | | ????????????????????## ?? #????????????????? | | ???????????????????## ?? ?????????????????? | | ???????????????????" $?? ?????????????????? | | ????????????????????" ## ??????????????????? | | ????????????????????" # ###???????????????? | | ????????????????????? ##??????????????? | | ????????????????????# ? ???????????????? | | ????????????????????# ?? ???????????????? | | ????????????????????# ?? ##??????????????? | | ?????????????????????# ??? #??????????????? | | ????????????????????## #### ##??????????????? | | ????????????????????# # @# #??????????????? | | ?????????????# #??#### R #???????????????? | | ?????????????# # # #R###???????????????? | | ?????????????# #####?????????????????? | | ??????????????##### # ##????????????????????? | | ???????? ????????#### #????????????????????? | | ????????# ????????# #????????????????????? | | ?????????# ??????## #????????????????????? | | ??????????# #?### #????????????????????? | | ??????????# # ##??#####?????????????? | | ??????? #??## #?????????????? | | ??????? ## ##??# #?????????????? | | ???????? ??# ##### #?????????????? | | ???????? ???## ## ###?????????????? | | ?????????### ????# #???????????????? | | ???????? #?## ?????# ##???????????????? | | ?????? ###??????# #????????????????? | | ????? #### #????????????????? | | ????? ???# ##????????????????? | | ?????? ? #??## #####??????????????? | | ??????? ### #??## ## ##?????????????? | | ????????# ???##??## #?????????????? | | ?????????# ###???## #?????????????? | | ??????????# ###?# #?????????????? | | ????####### ### ##?????????????? | +----------------------------------------------------+ Best States ------------- Heat Dissipation 25 Energy Generation 10 Energy Capacity 250 Matter Stores 300 Matter Capacity 300 Sight Range 16 Terrain Scan Range 16 Terrain Scan Density 10 Armor Coverage 150 Evasion (%) 40 Recoil Reduction 2 Item Schematics ----------------- None Robot Schematics ------------------ None Fabricated ------------ Nothing Alien Tech Used ----------------- None Achievements -------------- None Challenges ------------ None Game ------ Seed ExplosiveArcProcessor Manual? 0 Play Time 00:18:19 Cumulative 95.8 hours Start 2024.05.31 @ 18:02:52 End 2024.05.31 @ 18:20:01 Sessions 1 Manual Loads 0 Difficulty Rogue Special Mode None Game No. 164 Rogue 164 Adventurer 0 Explorer 0 Win Type - Total 1 Types 1/0/0/0/0/0/0/0/0 Lore% 42 Gallery% 46 Achievement% 33 Wizard Run 0 Options --------- Layout 1 ASCII 0 Keyboard 1 Movement Numpad Keybinds 0 Fullscreen 1 Font 24/Smallcaps Map View 50x35 Zoom Use 0% Tactical HUD 1 Map Filters NONE Filters NONE Steam 1 RUN: 538bcd8e-8bee-4770-a87a-7e4da4b356ac